[Event "*** Biggest EVER Titled Tuesday"]
[Site "Chess.com"]
[Date "2018.04.17"]
[Round "9"]
[White "josephymwale33"]
[Black "itisabigworld"]
[Result "0-1"]
[WhiteElo "2162"]
[BlackElo "2267"]
[TimeControl "180+2"]
[EndTime "15:03:48 PDT"]
[Termination "itisabigworld won by resignation"]

1. d4 {[%clk 0:03:01.9]} 1... f5 {[%clk 0:02:59.3]} 2. c4 {[%clk 0:02:59.5]}
2... Nf6 {[%clk 0:02:57]} 3. Nf3 {[%clk 0:03:01.4]} 3... g6 {[%clk 0:02:56.5]}
4. g3 {[%clk 0:03:02.9]} 4... Bg7 {[%clk 0:02:57.7]} 5. Bg2 {[%clk 0:03:04.8]}
5... O-O {[%clk 0:02:59.1]} 6. O-O {[%clk 0:03:06.7]} 6... d6 {[%clk 0:03:00.5]}
7. Nc3 {[%clk 0:03:08.6]} 7... Qe8 {[%clk 0:03:00.9]} 8. d5 {[%clk 0:03:09.9]}
8... Na6 {[%clk 0:02:58.1]} 9. Nd4 {[%clk 0:03:05.1]} 9... Nc5 {[%clk
0:02:48.6]} 10. f3 {[%clk 0:03:01]} 10... e5 {[%clk 0:02:41.1]} 11. dxe6 {[%clk
0:03:00.7]} 11... Nxe6 {[%clk 0:02:41.9]} 12. Ndb5 {[%clk 0:03:02.1]} 12... a6
{[%clk 0:02:39.8]} 13. Na3 {[%clk 0:03:00.3]} 13... Bd7 {[%clk 0:02:23]} 14. Kh1
{[%clk 0:03:00.1]} 14... b5 {[%clk 0:02:23.9]} 15. Nd5 {[%clk 0:02:53.8]} 15...
Rb8 {[%clk 0:02:08.5]} 16. Bg5 {[%clk 0:02:44.2]} 16... Nxd5 {[%clk 0:01:55.5]}
17. cxd5 {[%clk 0:02:42.6]} 17... Nc5 {[%clk 0:01:54.5]} 18. Rb1 {[%clk
0:02:37.8]} 18... Na4 {[%clk 0:01:52.6]} 19. Qc2 {[%clk 0:02:31.4]} 19... c6
{[%clk 0:01:49.7]} 20. f4 {[%clk 0:02:24.9]} 20... c5 {[%clk 0:01:49.5]} 21. e4
{[%clk 0:02:14.1]} 21... fxe4 {[%clk 0:01:48.8]} 22. Bxe4 {[%clk 0:02:16]} 22...
Nxb2 {[%clk 0:01:49.4]} 23. Rfe1 {[%clk 0:02:15.6]} 23... Na4 {[%clk 0:01:42.8]}
24. Qg2 {[%clk 0:02:02.9]} 24... Nc3 {[%clk 0:01:40.1]} 25. Rb3 {[%clk
0:02:01.4]} 25... c4 {[%clk 0:01:36.3]} 26. Rb2 {[%clk 0:01:55.9]} 26... Nxe4
{[%clk 0:01:33.4]} 27. Rxe4 {[%clk 0:01:52.2]} 27... Qxe4 {[%clk 0:01:33.5]} 28.
Qxe4 {[%clk 0:01:51.6]} 28... Bxb2 {[%clk 0:01:34]} 29. Nc2 {[%clk 0:01:52.6]}
29... Bf5 {[%clk 0:01:33.9]} 30. Qg2 {[%clk 0:01:51.5]} 30... Rbe8 {[%clk
0:01:33]} 31. g4 {[%clk 0:01:52.5]} 31... Be4 {[%clk 0:01:33.4]} 0-1

[Event "*** Biggest EVER Titled Tuesday"]
[Site "Chess.com"]
[Date "2018.04.17"]
[Round "9"]
[White "Anar_Aliakbarov"]
[Black "MrRooke6"]
[Result "1-0"]
[WhiteElo "2390"]
[BlackElo "2392"]
[TimeControl "180+2"]
[EndTime "15:03:58 PDT"]
[Termination "Anar_Aliakbarov won by resignation"]

1. d4 {[%clk 0:03:01]} 1... Nc6 {[%clk 0:03:01.4]} 2. Nf3 {[%clk 0:03:00.4]}
2... d5 {[%clk 0:02:57.3]} 3. e3 {[%clk 0:02:53.7]} 3... Bg4 {[%clk 0:02:57.1]}
4. Be2 {[%clk 0:02:51.8]} 4... e6 {[%clk 0:02:57.9]} 5. O-O {[%clk 0:02:53.1]}
5... Bd6 {[%clk 0:02:58.7]} 6. c4 {[%clk 0:02:51.4]} 6... dxc4 {[%clk
0:02:59.6]} 7. Nbd2 {[%clk 0:02:49.6]} 7... b5 {[%clk 0:02:58.2]} 8. b3 {[%clk
0:02:48.2]} 8... Nf6 {[%clk 0:02:54.2]} 9. bxc4 {[%clk 0:02:48.8]} 9... bxc4
{[%clk 0:02:48.7]} 10. Nxc4 {[%clk 0:02:47.8]} 10... O-O {[%clk 0:02:49.3]} 11.
a4 {[%clk 0:02:41.1]} 11... Rb8 {[%clk 0:02:47.5]} 12. Ba3 {[%clk 0:02:39.5]}
12... Bxa3 {[%clk 0:02:47.6]} 13. Rxa3 {[%clk 0:02:39.2]} 13... Nb4 {[%clk
0:02:47]} 14. Nce5 {[%clk 0:02:30.2]} 14... Bf5 {[%clk 0:02:43.6]} 15. Rc3
{[%clk 0:02:24.5]} 15... Ne4 {[%clk 0:02:40.6]} 16. Rb3 {[%clk 0:02:17.7]} 16...
a5 {[%clk 0:02:39]} 17. Nd2 {[%clk 0:02:14.4]} 17... c5 {[%clk 0:02:31.7]} 18.
Nxe4 {[%clk 0:02:12.7]} 18... Bxe4 {[%clk 0:02:32.2]} 19. dxc5 {[%clk
0:02:10.6]} 19... Qg5 {[%clk 0:02:32.7]} 20. Nf3 {[%clk 0:02:04.5]} 20... Qxc5
{[%clk 0:02:33]} 21. Qd4 {[%clk 0:02:03.7]} 21... Qc6 {[%clk 0:02:30]} 22. Bb5
{[%clk 0:02:00.5]} 22... Qb7 {[%clk 0:02:31]} 23. Be2 {[%clk 0:01:50.4]} 23...
Rfd8 {[%clk 0:02:31.5]} 24. Qe5 {[%clk 0:01:50.8]} 24... Bc2 {[%clk 0:02:27.7]}
25. Rb2 {[%clk 0:01:50]} 25... Rd5 {[%clk 0:02:27.5]} 26. Qf4 {[%clk 0:01:47.3]}
26... Bxa4 {[%clk 0:02:27]} 27. Ng5 {[%clk 0:01:33.3]} 27... Rf5 {[%clk
0:02:14.9]} 28. Qh4 {[%clk 0:01:34.2]} 28... h6 {[%clk 0:02:15.6]} 29. Ne4
{[%clk 0:01:31.2]} 29... Rd8 {[%clk 0:01:58.2]} 30. Qxd8+ {[%clk 0:01:30]} 30...
Kh7 {[%clk 0:01:56.3]} 31. Nd6 {[%clk 0:01:30.8]} 31... Qd5 {[%clk 0:01:55.7]}
32. e4 {[%clk 0:01:27.6]} 32... Qd4 {[%clk 0:01:56.9]} 33. Rxb4 {[%clk
0:01:25.6]} 33... axb4 {[%clk 0:01:56.2]} 34. exf5 {[%clk 0:01:27]} 1-0

[Event "*** Biggest EVER Titled Tuesday"]
[Site "Chess.com"]
[Date "2018.04.17"]
[Round "9"]
[White "Bauxi435"]
[Black "TheBigBoss04"]
[Result "0-1"]
[WhiteElo "2423"]
[BlackElo "2522"]
[TimeControl "180+2"]
[EndTime "15:04:02 PDT"]
[Termination "TheBigBoss04 won by checkmate"]

1. d4 {[%clk 0:03:01.9]} 1... Nf6 {[%clk 0:03:01.1]} 2. c4 {[%clk 0:03:02.3]}
2... g6 {[%clk 0:03:02.7]} 3. Nc3 {[%clk 0:03:03.2]} 3... Bg7 {[%clk 0:03:04.3]}
4. e4 {[%clk 0:03:03.6]} 4... d6 {[%clk 0:03:06]} 5. Be2 {[%clk 0:03:05]} 5...
O-O {[%clk 0:03:07.3]} 6. Be3 {[%clk 0:03:06.2]} 6... c5 {[%clk 0:03:08.6]} 7.
dxc5 {[%clk 0:03:02.3]} 7... dxc5 {[%clk 0:03:08.9]} 8. Qxd8 {[%clk 0:03:02.5]}
8... Rxd8 {[%clk 0:03:09.4]} 9. Bxc5 {[%clk 0:03:04]} 9... Na6 {[%clk
0:03:11.1]} 10. Bxe7 {[%clk 0:03:04.6]} 10... Re8 {[%clk 0:03:11.7]} 11. Bxf6
{[%clk 0:03:01.6]} 11... Bxf6 {[%clk 0:03:13.3]} 12. f3 {[%clk 0:03:02.7]} 12...
Nb4 {[%clk 0:03:13.2]} 13. Rc1 {[%clk 0:02:59.1]} 13... Be6 {[%clk 0:03:13]} 14.
a3 {[%clk 0:02:56.7]} 14... Nc6 {[%clk 0:03:13.4]} 15. Nd5 {[%clk 0:02:48]}
15... Bxb2 {[%clk 0:03:05.5]} 16. Rb1 {[%clk 0:02:48.2]} 16... Bxa3 {[%clk
0:03:07]} 17. Nf6+ {[%clk 0:02:48.2]} 17... Kg7 {[%clk 0:03:05.8]} 18. Nxe8+
{[%clk 0:02:49.3]} 18... Rxe8 {[%clk 0:03:07.3]} 19. Rxb7 {[%clk 0:02:50.3]}
19... Bb4+ {[%clk 0:03:08.7]} 20. Kf2 {[%clk 0:02:26.8]} 20... a5 {[%clk
0:03:09.6]} 21. Nh3 {[%clk 0:02:26.1]} 21... Bxh3 {[%clk 0:03:08.5]} 22. gxh3
{[%clk 0:02:27.2]} 22... a4 {[%clk 0:03:09.3]} 23. Ra1 {[%clk 0:02:25.6]} 23...
a3 {[%clk 0:03:09.9]} 24. Bd1 {[%clk 0:02:07.5]} 24... Bc5+ {[%clk 0:03:09.6]}
25. Kg3 {[%clk 0:02:07.1]} 25... Bd6+ {[%clk 0:03:09.3]} 26. Kf2 {[%clk
0:02:07.2]} 26... Bc5+ {[%clk 0:03:09.9]} 27. Kg3 {[%clk 0:01:57.4]} 27... Bd6+
{[%clk 0:03:10.5]} 28. Kg2 {[%clk 0:01:58.3]} 28... Ne5 {[%clk 0:03:08.7]} 29.
Bb3 {[%clk 0:01:32.8]} 29... Nd3 {[%clk 0:03:05.9]} 30. c5 {[%clk 0:01:28.9]}
30... Nxc5 {[%clk 0:03:04.8]} 31. Rxf7+ {[%clk 0:01:28.8]} 31... Kh6 {[%clk
0:03:04.6]} 32. Rxa3 {[%clk 0:01:11.8]} 32... Rb8 {[%clk 0:03:01.4]} 33. Bd1
{[%clk 0:00:19.3]} 33... Rb2+ {[%clk 0:02:57.9]} 34. Kf1 {[%clk 0:00:19.9]}
34... Nxe4 {[%clk 0:02:57.7]} 35. Raa7 {[%clk 0:00:19.5]} 35... Rf2+ {[%clk
0:02:58.4]} 36. Kg1 {[%clk 0:00:19.2]} 36... Bxh2+ {[%clk 0:02:59.3]} 37. Kh1
{[%clk 0:00:19.9]} 37... Ng3# {[%clk 0:03:00.9]} 0-1

[Event "*** Biggest EVER Titled Tuesday"]
[Site "Chess.com"]
[Date "2018.04.17"]
[Round "9"]
[White "Marcin"]
[Black "GadimbayliA"]
[Result "1-0"]
[WhiteElo "2303"]
[BlackElo "2390"]
[TimeControl "180+2"]
[EndTime "15:04:33 PDT"]
[Termination "Marcin won on time"]

1. d4 {[%clk 0:03:01.9]} 1... e6 {[%clk 0:03:00.8]} 2. c4 {[%clk 0:03:00.8]}
2... b6 {[%clk 0:03:01.7]} 3. Nf3 {[%clk 0:03:00.1]} 3... Bb7 {[%clk 0:03:01.7]}
4. g3 {[%clk 0:02:58.4]} 4... Nf6 {[%clk 0:03:02.5]} 5. Bg2 {[%clk 0:02:59.9]}
5... Be7 {[%clk 0:03:04]} 6. O-O {[%clk 0:03:01.4]} 6... O-O {[%clk 0:03:05.6]}
7. Nc3 {[%clk 0:03:02.9]} 7... Ne4 {[%clk 0:03:06.7]} 8. Qc2 {[%clk 0:03:02.4]}
8... Nxc3 {[%clk 0:03:04]} 9. Qxc3 {[%clk 0:03:03.4]} 9... c5 {[%clk 0:03:05.3]}
10. Rd1 {[%clk 0:02:58.3]} 10... Bf6 {[%clk 0:03:00.1]} 11. Qc2 {[%clk
0:02:53.6]} 11... cxd4 {[%clk 0:02:58.2]} 12. Ng5 {[%clk 0:02:51.3]} 12... Bxg5
{[%clk 0:02:54.9]} 13. Bxb7 {[%clk 0:02:52.2]} 13... Nc6 {[%clk 0:02:55.6]} 14.
Bxa8 {[%clk 0:02:53.1]} 14... Bxc1 {[%clk 0:02:55.5]} 15. Bxc6 {[%clk
0:02:53.3]} 15... dxc6 {[%clk 0:02:54.5]} 16. Raxc1 {[%clk 0:02:53]} 16... c5
{[%clk 0:02:55.4]} 17. e3 {[%clk 0:02:47.1]} 17... e5 {[%clk 0:02:56.1]} 18.
exd4 {[%clk 0:02:48.3]} 18... exd4 {[%clk 0:02:54.9]} 19. Re1 {[%clk 0:02:49.7]}
19... f5 {[%clk 0:02:53.7]} 20. f4 {[%clk 0:02:45.8]} 20... d3 {[%clk
0:02:52.3]} 21. Qd2 {[%clk 0:02:46.5]} 21... Qd4+ {[%clk 0:02:53.3]} 22. Kg2
{[%clk 0:02:47.8]} 22... Rd8 {[%clk 0:02:52.2]} 23. Re3 {[%clk 0:02:47]} 23...
g5 {[%clk 0:02:53.4]} 24. fxg5 {[%clk 0:02:44.6]} 24... f4 {[%clk 0:02:50.9]}
25. gxf4 {[%clk 0:02:44.9]} 25... Kf8 {[%clk 0:02:50.1]} 26. Rf1 {[%clk
0:02:42.4]} 26... Qxc4 {[%clk 0:02:49.9]} 27. Rff3 {[%clk 0:02:41.5]} 27... Qc2
{[%clk 0:02:48]} 28. Rf2 {[%clk 0:02:25.9]} 28... Qc4 {[%clk 0:02:48.3]} 29. b3
{[%clk 0:02:17.6]} 1-0

[Event "*** Biggest EVER Titled Tuesday"]
[Site "Chess.com"]
[Date "2018.04.17"]
[Round "9"]
[White "LyonBeast"]
[Black "sergiochess83"]
[Result "1/2-1/2"]
[WhiteElo "2851"]
[BlackElo "2804"]
[TimeControl "180+2"]
[EndTime "15:04:39 PDT"]
[Termination "Game drawn by repetition"]

1. e4 {[%clk 0:03:01.9]} 1... c6 {[%clk 0:02:59.7]} 2. Nf3 {[%clk 0:02:59.8]}
2... d5 {[%clk 0:03:00.3]} 3. Nc3 {[%clk 0:03:00.8]} 3... Bg4 {[%clk 0:02:59.1]}
4. h3 {[%clk 0:03:01.4]} 4... Bxf3 {[%clk 0:02:59.9]} 5. Qxf3 {[%clk 0:03:03.3]}
5... Nf6 {[%clk 0:02:58.9]} 6. Be2 {[%clk 0:03:01.5]} 6... e6 {[%clk 0:02:56.3]}
7. O-O {[%clk 0:03:02]} 7... Bc5 {[%clk 0:02:48.5]} 8. Qf4 {[%clk 0:02:54.1]}
8... O-O {[%clk 0:02:38.2]} 9. Rd1 {[%clk 0:02:47.3]} 9... Nbd7 {[%clk 0:01:45]}
10. e5 {[%clk 0:02:25.5]} 10... Ne8 {[%clk 0:01:44]} 11. d4 {[%clk 0:02:26.1]}
11... Be7 {[%clk 0:01:43.7]} 12. Qg3 {[%clk 0:01:52.4]} 12... c5 {[%clk
0:01:40.7]} 13. dxc5 {[%clk 0:01:42.5]} 13... Qc7 {[%clk 0:01:38]} 14. f4 {[%clk
0:01:31]} 14... Bxc5+ {[%clk 0:01:31.3]} 15. Kh1 {[%clk 0:01:30.7]} 15... g6
{[%clk 0:01:31.7]} 16. Bd3 {[%clk 0:01:27.8]} 16... Ng7 {[%clk 0:01:30.3]} 17.
Ne2 {[%clk 0:01:12.6]} 17... f6 {[%clk 0:01:20.3]} 18. exf6 {[%clk 0:01:13.1]}
18... Nxf6 {[%clk 0:01:22.2]} 19. Bd2 {[%clk 0:01:02.9]} 19... Rae8 {[%clk
0:01:10.5]} 20. Rf1 {[%clk 0:01:02.9]} 20... Nf5 {[%clk 0:01:05.8]} 21. Qf3
{[%clk 0:00:58.9]} 21... Nh4 {[%clk 0:01:06.4]} 22. Qg3 {[%clk 0:00:59.3]} 22...
Nf5 {[%clk 0:01:07.4]} 23. Qf3 {[%clk 0:01:00.9]} 23... Nh4 {[%clk 0:00:42.8]}
24. Qg3 {[%clk 0:01:01.5]} 24... Nf5 {[%clk 0:00:43.8]} 1/2-1/2

[Event "*** Biggest EVER Titled Tuesday"]
[Site "Chess.com"]
[Date "2018.04.17"]
[Round "9"]
[White "Arm-Akiba"]
[Black "gmjlh"]
[Result "1-0"]
[WhiteElo "2686"]
[BlackElo "2584"]
[TimeControl "180+2"]
[EndTime "15:04:46 PDT"]
[Termination "Arm-Akiba won by resignation"]

1. d4 {[%clk 0:03:01.9]} 1... d5 {[%clk 0:03:00.3]} 2. Nf3 {[%clk 0:03:03]} 2...
Nf6 {[%clk 0:03:01]} 3. c3 {[%clk 0:03:04.1]} 3... e6 {[%clk 0:02:48.9]} 4. Bg5
{[%clk 0:03:03.9]} 4... c5 {[%clk 0:02:45.7]} 5. e3 {[%clk 0:03:05.1]} 5... cxd4
{[%clk 0:02:47.2]} 6. exd4 {[%clk 0:03:05.5]} 6... Be7 {[%clk 0:02:45.8]} 7. Bd3
{[%clk 0:03:06.1]} 7... Qb6 {[%clk 0:02:27.9]} 8. Qb3 {[%clk 0:03:06.1]} 8...
Qxb3 {[%clk 0:02:20.2]} 9. axb3 {[%clk 0:03:08]} 9... Ne4 {[%clk 0:02:21]} 10.
Bxe7 {[%clk 0:03:07.5]} 10... Kxe7 {[%clk 0:02:21.5]} 11. Nbd2 {[%clk
0:03:08.5]} 11... Nxd2 {[%clk 0:02:17.8]} 12. Kxd2 {[%clk 0:03:09.5]} 12... Nd7
{[%clk 0:01:54.8]} 13. b4 {[%clk 0:03:10.3]} 13... Nb6 {[%clk 0:01:34.1]} 14.
Ra5 {[%clk 0:03:09.9]} 14... a6 {[%clk 0:01:28.2]} 15. Rha1 {[%clk 0:03:07.8]}
15... Bd7 {[%clk 0:01:28.5]} 16. b3 {[%clk 0:02:59.5]} 16... Rac8 {[%clk
0:01:20.1]} 17. Rc5 {[%clk 0:02:59.3]} 17... Rhd8 {[%clk 0:01:16.2]} 18. h4
{[%clk 0:02:57.7]} 18... h6 {[%clk 0:01:15.3]} 19. Ne5 {[%clk 0:02:52.7]} 19...
Be8 {[%clk 0:01:16.4]} 20. Re1 {[%clk 0:02:49.6]} 20... Nd7 {[%clk 0:01:07.6]}
21. Nxd7 {[%clk 0:02:48.7]} 21... Kxd7 {[%clk 0:01:05.2]} 22. f4 {[%clk
0:02:46.7]} 22... Kd6 {[%clk 0:00:55.3]} 23. f5 {[%clk 0:02:44.9]} 23... Bd7
{[%clk 0:00:55.9]} 24. fxe6 {[%clk 0:02:45.9]} 24... Bxe6 {[%clk 0:00:57.6]} 25.
c4 {[%clk 0:02:39.8]} 25... dxc4 {[%clk 0:00:49.6]} 26. bxc4 {[%clk 0:02:39.9]}
26... Ra8 {[%clk 0:00:30.8]} 27. Rce5 {[%clk 0:02:37.1]} 27... b6 {[%clk
0:00:28.6]} 28. Kc3 {[%clk 0:02:25.3]} 28... Rdc8 {[%clk 0:00:26.6]} 29. c5+
{[%clk 0:02:19.5]} 29... bxc5 {[%clk 0:00:23.3]} 30. bxc5+ {[%clk 0:02:20.5]}
30... Kd7 {[%clk 0:00:14.4]} 31. Bc4 {[%clk 0:02:21]} 31... Re8 {[%clk
0:00:05.2]} 32. d5 {[%clk 0:02:18.2]} 32... Bg4 {[%clk 0:00:04.5]} 33. c6+
{[%clk 0:02:17.6]} 1-0

[Event "*** Biggest EVER Titled Tuesday"]
[Site "Chess.com"]
[Date "2018.04.17"]
[Round "9"]
[White "r31415"]
[Black "MateusViageiro"]
[Result "1-0"]
[WhiteElo "2219"]
[BlackElo "2203"]
[TimeControl "180+2"]
[EndTime "15:04:46 PDT"]
[Termination "r31415 won by checkmate"]

1. e4 {[%clk 0:03:01.9]} 1... c5 {[%clk 0:02:57.4]} 2. Nf3 {[%clk 0:03:02.3]}
2... d6 {[%clk 0:02:54.2]} 3. d4 {[%clk 0:03:03.8]} 3... cxd4 {[%clk 0:02:54.7]}
4. Nxd4 {[%clk 0:03:05.7]} 4... Nf6 {[%clk 0:02:55.2]} 5. Nc3 {[%clk 0:03:07.2]}
5... a6 {[%clk 0:02:56.3]} 6. h3 {[%clk 0:03:08.7]} 6... e5 {[%clk 0:02:56.4]}
7. Nde2 {[%clk 0:03:09]} 7... Be6 {[%clk 0:02:55.7]} 8. g4 {[%clk 0:03:09.6]}
8... d5 {[%clk 0:02:56]} 9. exd5 {[%clk 0:03:11.5]} 9... Nxd5 {[%clk 0:02:47]}
10. Bg2 {[%clk 0:03:12.7]} 10... Bb4 {[%clk 0:02:47.7]} 11. O-O {[%clk
0:03:09.4]} 11... Bxc3 {[%clk 0:02:43]} 12. Nxc3 {[%clk 0:03:07.8]} 12... Nxc3
{[%clk 0:02:43.1]} 13. Qxd8+ {[%clk 0:03:08.5]} 13... Kxd8 {[%clk 0:02:43.9]}
14. bxc3 {[%clk 0:03:10.2]} 14... Kc7 {[%clk 0:02:42.6]} 15. f4 {[%clk
0:03:02.4]} 15... exf4 {[%clk 0:02:32.7]} 16. Bxf4+ {[%clk 0:03:01.3]} 16... Kc8
{[%clk 0:02:34.1]} 17. Rab1 {[%clk 0:02:49.9]} 17... Nc6 {[%clk 0:02:31.9]} 18.
Rb6 {[%clk 0:02:49.8]} 18... Nd8 {[%clk 0:02:06.4]} 19. Rd1 {[%clk 0:02:35.2]}
19... Bd7 {[%clk 0:02:02]} 20. Rbd6 {[%clk 0:02:12.6]} 20... Bc6 {[%clk
0:01:40.3]} 21. Bxc6 {[%clk 0:02:11.7]} 21... Nxc6 {[%clk 0:01:41.4]} 22. Rd7
{[%clk 0:02:12.4]} 22... Rd8 {[%clk 0:01:30.5]} 23. Rc7+ {[%clk 0:02:09.3]}
23... Kb8 {[%clk 0:01:29.4]} 24. Rxc6+ {[%clk 0:01:53.3]} 24... Ka7 {[%clk
0:01:27.2]} 25. Be3+ {[%clk 0:01:46.3]} 25... b6 {[%clk 0:01:21.6]} 26. Bxb6+
{[%clk 0:01:45.8]} 26... Kb7 {[%clk 0:01:22.7]} 27. Rxd8 {[%clk 0:01:46.8]}
27... Rxd8 {[%clk 0:01:21]} 28. Bxd8 {[%clk 0:01:47.4]} 28... Kxc6 {[%clk
0:01:22.9]} 29. Kf2 {[%clk 0:01:47.4]} 29... Kc5 {[%clk 0:01:23.3]} 30. Ke3
{[%clk 0:01:48.4]} 30... Kc4 {[%clk 0:01:24.3]} 31. Ba5 {[%clk 0:01:49.9]} 31...
g6 {[%clk 0:01:25.3]} 32. g5 {[%clk 0:01:50.7]} 32... Kb5 {[%clk 0:01:26.4]} 33.
Bb4 {[%clk 0:01:50.8]} 33... a5 {[%clk 0:01:27.5]} 34. Be7 {[%clk 0:01:52.2]}
34... Kc4 {[%clk 0:01:28.3]} 35. Bf6 {[%clk 0:01:53.6]} 35... Kb5 {[%clk
0:01:28]} 36. Kd3 {[%clk 0:01:54.5]} 36... Ka4 {[%clk 0:01:29.3]} 37. c4 {[%clk
0:01:55.5]} 37... Ka3 {[%clk 0:01:27.2]} 38. Kc3 {[%clk 0:01:55.2]} 38... Kxa2
{[%clk 0:01:28.3]} 39. c5 {[%clk 0:01:54.1]} 39... a4 {[%clk 0:01:28.8]} 40. c6
{[%clk 0:01:55.6]} 40... a3 {[%clk 0:01:30.4]} 41. c7 {[%clk 0:01:57.5]} 41...
Kb1 {[%clk 0:01:31.3]} 42. c8=Q {[%clk 0:01:58.3]} 42... a2 {[%clk 0:01:32]} 43.
Qb7+ {[%clk 0:01:53.7]} 43... Kc1 {[%clk 0:01:32.2]} 44. Qh1# {[%clk 0:01:55.2]}
1-0

[Event "*** Biggest EVER Titled Tuesday"]
[Site "Chess.com"]
[Date "2018.04.17"]
[Round "9"]
[White "lachesisQ"]
[Black "Generalas"]
[Result "1-0"]
[WhiteElo "2919"]
[BlackElo "2203"]
[TimeControl "180+2"]
[EndTime "15:04:56 PDT"]
[Termination "lachesisQ won by resignation"]

1. g3 {[%clk 0:03:01.9]} 1... e5 {[%clk 0:02:59.7]} 2. Bg2 {[%clk 0:03:03.8]}
2... d5 {[%clk 0:03:00]} 3. b3 {[%clk 0:02:56.4]} 3... Nf6 {[%clk 0:02:59.7]} 4.
Bb2 {[%clk 0:02:58.3]} 4... Bd6 {[%clk 0:03:00.3]} 5. c4 {[%clk 0:02:58.9]} 5...
c6 {[%clk 0:03:00.4]} 6. cxd5 {[%clk 0:02:58.5]} 6... cxd5 {[%clk 0:03:01]} 7.
Nc3 {[%clk 0:03:00.4]} 7... Be6 {[%clk 0:03:00.6]} 8. Nf3 {[%clk 0:03:01]} 8...
Nc6 {[%clk 0:03:00.4]} 9. O-O {[%clk 0:03:01.6]} 9... O-O {[%clk 0:02:58.1]} 10.
Ng5 {[%clk 0:03:02.7]} 10... Qe7 {[%clk 0:02:50.9]} 11. Nxe6 {[%clk 0:03:03.5]}
11... fxe6 {[%clk 0:02:45.4]} 12. d3 {[%clk 0:03:02.4]} 12... Ba3 {[%clk
0:02:39.4]} 13. Qc1 {[%clk 0:03:02.1]} 13... Bxb2 {[%clk 0:02:39.4]} 14. Qxb2
{[%clk 0:03:04]} 14... Rac8 {[%clk 0:02:37.9]} 15. Rac1 {[%clk 0:03:04.4]} 15...
Nd4 {[%clk 0:02:37.2]} 16. e3 {[%clk 0:03:04.7]} 16... Nc6 {[%clk 0:02:34.2]}
17. Na4 {[%clk 0:03:05.5]} 17... Nd7 {[%clk 0:02:27.6]} 18. a3 {[%clk
0:03:03.5]} 18... Qd6 {[%clk 0:02:22.5]} 19. b4 {[%clk 0:03:04.4]} 19... b6
{[%clk 0:02:13.7]} 20. Bh3 {[%clk 0:03:04.2]} 20... Rf6 {[%clk 0:02:07.8]} 21.
Nc3 {[%clk 0:03:04.3]} 21... Rh6 {[%clk 0:01:49]} 22. Bg2 {[%clk 0:03:04.6]}
22... Ne7 {[%clk 0:01:45.5]} 23. Nb5 {[%clk 0:03:04.1]} 23... Qb8 {[%clk
0:01:46.1]} 24. Rxc8+ {[%clk 0:03:03.5]} 24... Nxc8 {[%clk 0:01:46.5]} 25. Rc1
{[%clk 0:03:05.4]} 25... a6 {[%clk 0:01:40]} 26. Nc7 {[%clk 0:03:05.9]} 26...
Qb7 {[%clk 0:01:35.5]} 27. Ne8 {[%clk 0:03:00.8]} 27... Kf8 {[%clk 0:01:25.9]}
28. Rc7 {[%clk 0:02:59.8]} 28... Qb8 {[%clk 0:01:23.2]} 29. Rxd7 {[%clk
0:02:49.7]} 29... Kxe8 {[%clk 0:01:21]} 30. Rxg7 {[%clk 0:02:51]} 30... Ne7
{[%clk 0:01:21.9]} 31. b5 {[%clk 0:02:41.2]} 31... a5 {[%clk 0:01:21.7]} 32. Rg5
{[%clk 0:02:38.2]} 32... Ng6 {[%clk 0:01:16.7]} 33. h4 {[%clk 0:02:38.6]} 33...
Kf7 {[%clk 0:01:09.1]} 34. h5 {[%clk 0:02:39.4]} 34... Ne7 {[%clk 0:00:48.6]}
35. Rxe5 {[%clk 0:02:39.5]} 35... Qd6 {[%clk 0:00:41.9]} 36. Rg5 {[%clk
0:02:39.5]} 36... Rf6 {[%clk 0:00:38.2]} 37. f4 {[%clk 0:02:37.3]} 37... h6
{[%clk 0:00:35.7]} 38. Re5 {[%clk 0:02:36.5]} 38... Nf5 {[%clk 0:00:34.4]} 39.
g4 {[%clk 0:02:37.5]} 39... Nh4 {[%clk 0:00:28]} 40. Bh1 {[%clk 0:02:34.4]}
40... Qc5 {[%clk 0:00:25.9]} 41. Kh2 {[%clk 0:02:34.8]} 1-0

[Event "*** Biggest EVER Titled Tuesday"]
[Site "Chess.com"]
[Date "2018.04.17"]
[Round "9"]
[White "Alopekos"]
[Black "KNVB"]
[Result "0-1"]
[WhiteElo "2302"]
[BlackElo "2587"]
[TimeControl "180+2"]
[EndTime "15:05:14 PDT"]
[Termination "KNVB won by resignation"]

1. e4 {[%clk 0:03:01.9]} 1... b6 {[%clk 0:03:00.2]} 2. d4 {[%clk 0:03:01.2]}
2... Bb7 {[%clk 0:03:01.4]} 3. Bd3 {[%clk 0:02:58.4]} 3... e6 {[%clk 0:03:02.2]}
4. Nf3 {[%clk 0:02:56.6]} 4... d5 {[%clk 0:03:03.6]} 5. e5 {[%clk 0:02:46.6]}
5... Ba6 {[%clk 0:03:01.3]} 6. O-O {[%clk 0:02:36]} 6... Bxd3 {[%clk 0:03:00.8]}
7. Qxd3 {[%clk 0:02:36.5]} 7... Ne7 {[%clk 0:03:02.7]} 8. c3 {[%clk 0:02:26.8]}
8... Qd7 {[%clk 0:02:50.1]} 9. Ng5 {[%clk 0:02:15.6]} 9... h6 {[%clk 0:02:47.6]}
10. Nh7 {[%clk 0:02:16.7]} 10... Nbc6 {[%clk 0:02:30]} 11. Nd2 {[%clk
0:01:57.4]} 11... Nf5 {[%clk 0:02:11.9]} 12. Nxf8 {[%clk 0:01:57]} 12... Kxf8
{[%clk 0:02:07.8]} 13. g4 {[%clk 0:01:49.1]} 13... Nfe7 {[%clk 0:01:57.8]} 14.
f4 {[%clk 0:01:47.1]} 14... h5 {[%clk 0:01:58]} 15. h3 {[%clk 0:01:41.2]} 15...
g6 {[%clk 0:01:58.5]} 16. Nf3 {[%clk 0:01:34.1]} 16... Kg7 {[%clk 0:01:58.8]}
17. Ng5 {[%clk 0:01:32.9]} 17... hxg4 {[%clk 0:01:58.2]} 18. hxg4 {[%clk
0:01:34.8]} 18... Rh4 {[%clk 0:01:59.2]} 19. Qg3 {[%clk 0:01:28.5]} 19... Rah8
{[%clk 0:02:00.7]} 20. Be3 {[%clk 0:01:15.7]} 20... Na5 {[%clk 0:01:57]} 21. b3
{[%clk 0:01:09.5]} 21... Qb5 {[%clk 0:01:57.7]} 22. f5 {[%clk 0:00:31.5]} 22...
Qe2 {[%clk 0:01:12.3]} 23. f6+ {[%clk 0:00:29.8]} 23... Kg8 {[%clk 0:01:13.7]}
24. Rf2 {[%clk 0:00:16.5]} 24... Qxg4 {[%clk 0:01:13]} 25. Qxg4 {[%clk
0:00:05.3]} 25... Rxg4+ {[%clk 0:01:14.9]} 26. Kf1 {[%clk 0:00:06.8]} 26... Nf5
{[%clk 0:01:15]} 0-1